bitfinex-derivatives/quotes_SOLF0:USTF0_20260105
["timestamp","ask_amount","ask_price","bid_price","bid_amount"]
[1767582186759,0.60519259,136.95,136.9,0.05011351]
[1767582189356,0.60519259,136.99,136.92,0.6015849]
[1767582190052,0.60519259,136.99,136.9,0.6015849]
[1767582190456,0.60519259,136.98,136.9,0.6015849]
[1767582190657,0.60519259,136.98,136.88,0.6015849]
[1767582190658,0.60519259,136.97,136.88,0.6015849]
[1767582192163,0.60519259,136.96,136.88,0.6015849]
[1767582192458,0.60519259,136.94,136.88,0.6015849]
[1767582194457,0.60519259,136.94,136.86,0.6015849]
[1767582194762,0.60519259,136.94,136.87,0.6015849]
[1767582195553,0.04660099,136.92,136.87,0.6015849]
[1767582196460,0.04660099,136.92,136.88,0.6015849]
[1767582196759,0.60519259,136.96,136.88,0.6015849]
[1767582196957,0.60519259,136.96,136.88,0.64967303]
[1767582197562,0.60519259,136.96,136.9,0.6015849]
[1767582197864,86.3,136.98,136.9,0.6015849]
[1767582198059,86.90519259,136.98,136.9,6.5768]
[1767582198256,86.3,136.98,136.91,0.6015849]
[1767582198457,86.3,136.98,136.93,0.05616049]
[1767582200366,86.3,136.98,136.94,0.6015849]
[1767582200665,86.3,136.98,136.93,0.05616049]
[1767582201669,86.90519259,136.98,136.93,0.05616049]
[1767582202369,86.3,136.98,136.93,0.65774539]
[1767582204372,86.90519259,136.98,136.93,0.05616049]
[1767582204875,0.60519259,136.97,136.93,0.05616049]
[1767582209375,6.572,137.01,136.93,0.05616049]
[1767582209376,0.60519259,137.0,136.93,0.05616049]
[1767582209575,6.572,137.01,136.93,0.05616049]
[1767582209576,86.88519259,136.99,136.93,0.05616049]
[1767582210172,0.60519259,136.98,136.93,0.05616049]
[1767582212190,0.58145453,137.0,136.93,0.64985555]
[1767582212389,86.86145453,136.99,136.93,0.64985555]
[1767582213785,86.86145453,136.99,136.93,7.22515555]
[1767582215094,0.58145453,136.98,136.93,0.05616049]
[1767582215997,0.53963423,136.96,136.89,6.5772]
[1767582216186,0.53963423,136.96,136.88,0.57446721]
[1767582217383,0.05035045,136.93,136.88,0.57446721]
[1767582217583,0.05035045,136.93,136.87,6.5782]
[1767582217584,0.58998468,136.93,136.87,6.5782]
[1767582217983,0.58998468,136.93,136.85,6.5791]
[1767582218291,0.58998468,136.93,136.85,7.15356721]
[1767582219797,0.58998468,136.93,136.86,0.57446721]
[1767582220199,0.05035045,136.93,136.87,0.57446721]
[1767582222993,0.58998468,136.93,136.87,0.57446721]
[1767582223300,0.58998468,136.93,136.85,0.57446721]
[1767582223697,0.53963423,136.93,136.85,0.57446721]
[1767582224201,2.30751486,136.96,136.86,0.57446721]
[1767582224399,86.83963423,136.95,136.86,0.57446721]
[1767582224591,1.47640669,136.94,136.86,0.57446721]
[1767582224788,0.05151279,136.92,136.87,0.57446721]
[1767582231495,0.53963423,136.91,136.85,0.57446721]
[1767582237996,2.06755371,136.92,136.85,0.57446721]
[1767582240203,0.53963423,136.91,136.85,0.57446721]
[1767582241901,0.53559498,136.89,136.82,7.16868955]
[1767582242203,0.53559498,136.89,136.83,0.58808955]
[1767582242589,0.53559498,136.88,136.81,0.58808955]
[1767582242795,0.05469093,136.87,136.81,0.58808955]
[1767582243705,0.59028591,136.87,136.81,0.58808955]
[1767582244401,0.05469093,136.87,136.81,0.58808955]
[1767582245310,0.05469093,136.87,136.82,0.58808955]
[1767582245490,0.05469093,136.87,136.83,0.58808955]
[1767582247403,93.43229498,136.91,136.83,0.58808955]
[1767582247707,93.43229498,136.91,136.84,2.11872386]
[1767582247708,86.85559498,136.91,136.84,2.11872386]
[1767582247907,86.85559498,136.91,136.85,0.58808955]
[1767582248794,86.32,136.91,136.85,0.58808955]
[1767582249909,7.11149498,136.93,136.85,0.58808955]
[1767582250205,0.53559498,136.92,136.85,0.58808955]
[1767582250607,0.53559498,136.92,136.87,0.05478599]
[1767582259312,0.53559498,136.91,136.87,0.05478599]
[1767582261812,0.58703106,136.9,136.82,2.06449624]
[1767582262017,0.53559498,136.88,136.82,0.58808955]
[1767582263005,0.04841999,136.86,136.82,0.58808955]
[1767582263208,0.00092238,136.86,136.82,0.58808955]
[1767582263407,0.00092238,136.86,136.84,0.04653546]
[1767582267021,0.00092238,136.86,136.8,0.58808955]
[1767582272624,0.00092238,136.86,136.8,7.16978955]
[1767582272824,0.00092238,136.86,136.81,0.5574842]
[1767582276836,0.00092238,136.86,136.82,0.55144657]
[1767582278939,1.47640669,136.84,136.77,0.55144657]
[1767582279437,6.5793,136.86,136.77,7.13454657]
[1767582279640,1.47640669,136.84,136.77,7.13454657]
[1767582280040,0.05415447,136.82,136.77,7.13454657]
[1767582281044,0.05415447,136.82,136.78,0.55144657]
[1767582286041,9.41819114,136.86,136.78,0.55144657]
[1767582286247,9.41819114,136.86,136.79,0.05154975]
[1767582286542,0.52872006,136.85,136.79,0.05154975]
[1767582288551,0.53120286,136.83,136.76,0.55144657]
[1767582288944,0.58027157,136.83,136.76,0.55144657]
[1767582289247,7.16087157,136.83,136.76,0.55144657]
[1767582292144,0.53377167,136.82,136.76,0.55144657]
[1767582293852,0.53377167,136.82,136.74,7.13604657]
[1767582294150,0.53377167,136.82,136.75,0.55144657]
[1767582294749,0.0500162,136.8,136.75,0.55144657]
[1767582296953,0.0500162,136.8,136.76,0.55144657]
[1767582299153,0.53377167,136.82,136.76,0.55144657]
[1767582299454,0.53377167,136.82,136.77,0.05509636]
[1767582300954,104.65617108,136.86,136.77,0.05509636]
[1767582300955,0.54789231,136.87,136.77,0.63125863]
[1767582301153,0.54789231,136.87,136.78,0.57616227]
[1767582301353,7.12569231,136.89,136.8,6.5817]
[1767582301558,104.61557108,136.91,136.82,0.57616227]
[1767582301559,0.54789231,136.91,136.82,0.57616227]
[1767582302056,0.54789231,136.91,136.83,0.57616227]
[1767582302664,0.54789231,136.91,136.86,0.04773913]
[1767582303048,6.5763,136.92,136.86,0.04773913]
[1767582303453,0.54994698,136.93,136.86,0.6239014]
[1767582307554,0.55389605,136.95,136.86,0.6239014]
[1767582307953,0.55389605,136.95,136.86,0.57616227]
[1767582308561,0.55485064,136.94,136.89,0.05264579]
[1767582309057,0.55579536,136.92,136.86,0.57616227]
[1767582309857,0.55673063,136.91,136.83,0.57616227]
[1767582310558,0.05129638,136.88,136.83,0.57616227]
[1767582313463,0.05129638,136.88,136.81,0.57616227]
[1767582314257,0.61166697,136.88,136.81,0.57616227]
[1767582314955,0.56125441,136.87,136.81,0.57616227]
[1767582315359,6.62959638,136.88,136.81,0.57616227]
[1767582315558,7.19085079,136.88,136.81,0.57616227]
[1767582317557,0.56299364,136.86,136.79,0.57616227]
[1767582318456,0.04750832,136.84,136.79,0.57616227]
[1767582324363,0.56878779,136.88,136.79,0.57616227]
[1767582325277,92.9173,136.9,136.81,0.57616227]
[1767582325567,92.9173,136.9,136.82,0.0511551]
[1767582325878,92.9173,136.9,136.83,0.57616227]
[1767582326675,86.34,136.9,136.85,0.04712815]
[1767582327368,7.14643269,136.94,136.85,0.62329042]
[1767582327868,0.57113269,136.93,136.85,0.57616227]
[1767582328665,0.57113269,136.93,136.85,7.15546227]
[1767582329772,0.57113269,136.93,136.88,0.04726846]
[1767582330174,6.5753,136.94,136.88,0.04726846]
[1767582330375,7.14867698,136.94,136.88,0.04726846]
[1767582331671,0.57432566,136.92,136.85,0.58471828]
[1767582331878,0.62930099,136.92,136.85,0.58471828]
[1767582332675,0.05497533,136.92,136.85,0.58471828]
[1767582333577,0.05497533,136.92,136.85,7.16391828]
[1767582334877,0.05497533,136.92,136.86,0.58471828]
[1767582340174,86.34,136.95,136.88,0.05595972]
[1767582340375,86.34,136.95,136.89,0.61481918]
[1767582343787,0.59252745,136.97,136.89,0.61481918]
[1767582344578,2.06821431,136.97,136.92,0.04741582]
[1767582346693,0.59252745,136.97,136.92,0.04741582]
[1767582348490,2.06821431,136.97,136.92,0.04741582]
[1767582349196,0.59252745,136.96,136.92,0.04741582]
[1767582349492,0.59252745,136.94,136.87,2.09050604]
[1767582349890,0.59252745,136.94,136.87,0.61481918]
[1767582354697,0.59252745,136.92,136.85,0.61481918]
[1767582355898,0.0512817,136.9,136.85,0.61481918]
[1767582356196,0.0512817,136.9,136.85,7.19411918]
[1767582358397,0.0512817,136.9,136.86,0.61481918]
[1767582358790,94.94351431,136.94,136.87,0.61481918]
[1767582359092,94.94351431,136.94,136.87,0.66208112]
[1767582359398,0.59252745,136.93,136.87,0.66208112]
[1767582359896,87.77568686,136.94,136.87,0.66208112]
[1767582360495,87.77568686,136.94,136.88,0.6252064]
[1767582361099,86.3,136.94,136.88,0.6252064]
[1767582361498,86.3,136.94,136.89,0.6252064]
[1767582362003,0.56821456,136.93,136.86,7.2038064]
[1767582362496,0.05196073,136.91,136.87,0.6252064]
[1767582362894,0.05196073,136.91,136.86,6.5786]
[1767582362895,0.05196073,136.91,136.85,2.10089326]
[1767582363496,0.05196073,136.91,136.85,0.6252064]
[1767582364597,0.05196073,136.91,136.85,7.2044064]
[1767582364805,0.05196073,136.91,136.86,0.6252064]
[1767582366505,1.47568686,136.94,136.86,0.6252064]
[1767582366699,1.47568686,136.94,136.88,0.6252064]
[1767582367796,2.04390142,136.94,136.88,0.6252064]
[1767582368405,0.56821456,136.93,136.87,0.0497654]
[1767582369707,2.04390142,136.93,136.87,0.0497654]
[1767582370709,0.56821456,136.93,136.87,0.0497654]
[1767582371403,0.56821456,136.93,136.87,0.6749718]
[1767582371708,0.56821456,136.95,136.87,0.6749718]
[1767582371905,2.04390142,136.95,136.87,0.6749718]
[1767582372108,2.04390142,136.95,136.87,0.6252064]
[1767582372503,2.04390142,136.95,136.9,0.05227951]
[1767582376403,0.56821456,136.95,136.9,0.05227951]
[1767582376605,2.04390142,136.95,136.9,0.05227951]
[1767582378312,86.3,136.97,136.9,0.67748591]
[1767582378313,87.77568686,136.97,136.9,0.67748591]
[1767582379122,0.56821456,136.96,136.9,0.67748591]
[1767582382916,0.56821456,136.96,136.9,7.25438591]
[1767582383920,86.3,136.97,136.91,0.6252064]
[1767582385216,86.3,136.97,136.91,7.2015064]
[1767582385619,86.86821456,136.97,136.9,0.67748591]
[1767582386009,86.86821456,136.97,136.9,7.25438591]
[1767582387925,86.86821456,136.97,136.91,0.6252064]
[1767582388628,86.86821456,136.97,136.91,7.2016064]
[1767582388825,0.56821456,136.97,136.91,7.2016064]
[1767582396739,0.56821456,136.97,136.92,0.62673144]
[1767582397041,0.57580025,136.99,136.93,0.62673144]
[1767582397533,6.5711,137.03,136.95,0.68043656]
[1767582397735,102.1873,137.07,136.96,0.62673144]
[1767582397935,1.47568686,137.05,136.96,0.62673144]
[1767582398447,1.47568686,137.05,136.99,0.05107632]
[1767582399137,6.5705,137.04,136.99,0.05107632]
[1767582399644,1.47568686,137.03,136.96,0.62673144]
[1767582403043,0.14891656,137.04,136.97,0.62673144]
[1767582405240,0.14891656,137.04,135.9,128.9369809]
[1767582405241,1.46,137.04,136.8,18.04340714]
[1767582405446,6.5747,136.95,136.85,0.62673144]
[1767582405746,1.47568686,136.9,136.8,0.62673144]
[1767582406049,1.47568686,136.88,136.8,0.62673144]
[1767582406543,2.30934706,136.89,136.8,0.62673144]
[1767582406741,0.05290625,136.85,136.8,0.62673144]
[1767582407042,102.2796,136.95,136.83,7.20693144]
[1767582407234,88.56934706,136.94,136.84,0.62673144]
[1767582408040,86.26,136.94,136.84,0.62673144]
[1767582408246,86.28,136.95,136.88,0.05028908]
[1767582408637,86.28,136.95,136.85,0.62673144]
[1767582409038,86.28,136.95,136.9,0.05409243]
[1767582409748,2.30934706,136.99,136.9,0.05409243]
[1767582410043,86.28,136.98,136.9,0.68082387]
[1767582410349,86.28,136.99,136.9,0.62673144]
[1767582410845,86.28,136.99,136.93,0.04887874]
[1767582413252,88.58934706,136.99,136.93,0.04887874]
[1767582413548,2.30934706,136.97,136.87,86.90673144]
[1767582414144,2.30934706,136.97,136.88,0.62673144]
[1767582414545,6.5735,136.98,136.88,0.62673144]
[1767582415555,6.5735,136.98,136.89,0.62673144]
[1767582416553,88.58934706,136.99,136.89,0.62673144]
[1767582416955,86.28,136.99,136.9,0.62673144]
[1767582417958,86.28,136.99,136.91,0.62673144]
[1767582419247,86.28,136.99,136.88,7.20463144]
[1767582419446,92.8531,136.99,136.88,7.20463144]
[1767582419760,95.16244706,136.99,136.89,0.62673144]
[1767582420548,92.8531,136.99,136.89,0.62673144]
[1767582421256,86.28,136.98,136.9,0.65820551]
[1767582421459,6.5718,137.01,136.9,0.65820551]
[1767582421658,86.28,137.0,136.9,0.65820551]
[1767582422260,102.2584,136.97,136.84,0.65820551]
[1767582422855,12.63608413,136.96,136.85,0.65820551]
[1767582423061,86.28,136.95,136.85,0.65820551]
[1767582424067,92.855,136.95,136.85,7.23740551]
[1767582424570,86.28,136.95,136.87,0.65820551]
[1767582424772,86.28,136.96,136.87,0.65820551]
[1767582424958,6.573,136.99,136.9,0.65820551]
[1767582425159,102.2209,137.02,136.91,0.65820551]
[1767582425365,86.28,136.99,136.91,0.65820551]
[1767582425560,86.28,136.99,136.88,0.65820551]
[1767582426765,92.853,136.99,136.89,7.23550551]
[1767582427156,86.28,136.99,136.89,0.65820551]
[1767582427353,6.5735,136.98,136.89,0.65820551]
[1767582427557,86.28,136.97,136.89,0.65820551]
[1767582429368,102.2209,137.02,136.91,0.65820551]
[1767582429571,102.1837,137.07,136.94,0.65820551]
[1767582429759,6.0567374,137.06,136.95,86.95820551]
[1767582429959,102.1837,137.07,136.95,86.95820551]
[1767582430262,6.05644096,137.06,136.95,86.95820551]
[1767582430468,102.1837,137.07,136.95,86.95820551]
[1767582430667,6.5701,137.05,136.95,93.53260551]
[1767582431074,102.1927,137.06,136.95,93.53260551]
[1767582431372,102.1927,137.06,136.95,7.23260551]
[1767582431966,102.2063,137.04,136.93,6.5754]
[1767582432171,86.28,137.05,136.93,0.65820551]
[1767582432560,6.5706,137.04,136.95,7.23260551]
[1767582433075,6.5706,137.04,136.96,0.65820551]
[1767582433773,6.5706,137.04,136.95,6.5744]
[1767582433975,86.28,137.05,136.95,6.5744]
[1767582433976,86.28,137.05,136.95,7.23260551]
[1767582434577,92.85,137.05,136.95,7.23260551]
[1767582434880,86.28,137.05,136.95,7.23260551]
[1767582435573,6.5706,137.04,136.95,7.23260551]
[1767582436472,6.5706,137.04,136.95,0.65820551]
[1767582436871,86.28,137.05,136.95,0.65820551]
[1767582438381,92.8501,137.05,136.96,7.23200551]
[1767582438881,6.5691,137.07,136.97,0.65820551]
[1767582440176,6.5696,137.06,136.97,0.65820551]
[1767582441981,6.5701,137.05,136.94,6.5748]
[1767582442182,6.5701,137.05,136.95,0.65820551]
[1767582443283,2.3035118,137.02,136.92,0.65820551]
[1767582443492,88.5635118,137.02,136.92,0.65820551]
[1767582444587,6.5726,137.0,136.92,0.65820551]
[1767582446187,95.1350118,137.02,136.92,7.23410551]
[1767582446591,86.26,137.02,136.93,0.65820551]
[1767582447391,6.5696,137.06,136.96,0.65820551]
[1767582448790,6.5696,137.06,136.97,6.5734]
[1767582449583,6.5701,137.05,136.96,0.65820551]
[1767582450788,102.207,137.04,136.93,7.25596657]
[1767582450980,88.5635118,137.03,136.93,7.25596657]
[1767582452792,6.5715,137.02,136.93,7.25596657]
[1767582453697,88.5635118,137.03,136.93,7.25596657]
[1767582453698,86.26,137.03,136.94,0.68046657]
[1767582453995,86.26,137.06,136.94,0.68046657]
[1767582454999,2.3035118,137.05,136.94,0.68046657]
[1767582456399,6.5705,137.04,136.94,7.25536657]
[1767582457094,6.571,137.03,136.94,7.25536657]
[1767582457293,104.5187118,137.03,136.92,6.5758]
[1767582458095,104.5187118,137.03,136.91,0.67793286]
[1767582458096,102.2208,137.02,136.91,0.67793286]
[1767582458289,88.5635118,137.01,136.9,6.5768]
[1767582458489,86.26,137.01,136.9,6.5768]
[1767582458991,92.8321,137.01,136.9,7.25473286]
[1767582459396,92.8321,137.01,136.91,7.25433286]
[1767582459591,86.26,137.01,136.91,0.67793286]
[1767582459993,86.26,137.01,136.93,6.5754]
[1767582460197,86.26,137.01,136.93,0.67793286]
[1767582460595,86.26,137.01,136.94,6.5748]
[1767582463701,86.26,137.01,136.93,0.67793286]
[1767582464905,86.26,137.01,136.9,7.25473286]
[1767582465707,6.5725,137.0,136.9,7.25473286]
[1767582466006,6.5725,137.0,136.91,6.5764]
[1767582467101,86.26,137.01,136.9,0.67793286]
[1767582468699,6.5725,137.0,136.9,7.25483286]
[1767582472702,6.5729,136.99,136.9,7.25483286]
[1767582478500,8.0481631,136.99,136.9,7.25483286]
[1767582479811,1.4752631,136.99,136.9,7.25483286]
[1767582480108,1.4752631,136.99,136.91,0.67793286]
[1767582480310,86.26,137.01,136.94,0.67793286]
[1767582480807,1.4752631,137.04,136.94,0.72747642]
[1767582481309,1.4752631,137.04,136.94,0.67793286]
[1767582481608,1.4752631,137.04,136.95,6.5744]
[1767582482009,1.4752631,137.04,136.98,0.04934684]
[1767582482209,1.4752631,137.02,136.94,0.67793286]
[1767582483106,8.0467631,137.02,136.94,7.25293286]
[1767582484310,1.4752631,137.02,136.94,7.25293286]
[1767582484501,6.5707,137.04,136.95,0.75815591]
[1767582484811,8.0459631,137.04,136.95,0.75815591]
[1767582485016,1.4752631,136.98,136.9,0.75815591]
[1767582485410,102.2239,137.02,136.9,0.75815591]
[1767582485604,1.4752631,136.99,136.9,0.75815591]
[1767582486215,8.0481631,136.99,136.9,7.33485591]
[1767582486714,8.0481631,136.99,136.91,0.75815591]
[1767582487604,1.4752631,136.97,136.89,2.23341901]
[1767582488715,1.4752631,136.97,136.89,0.75815591]
[1767582490020,1.4752631,136.97,136.87,0.75815591]
[1767582490412,1.4752631,136.95,136.87,0.75815591]
[1767582490718,1.4752631,136.97,136.88,0.75815591]
[1767582491622,1.4752631,136.97,136.89,0.75815591]
[1767582492122,6.5735,136.98,136.9,0.75815591]
[1767582494618,87.7552631,136.99,136.9,0.75815591]
[1767582495412,86.28,136.99,136.92,0.75815591]
[1767582498226,0.05030698,136.97,136.92,0.75815591]
[1767582499427,87.7552631,137.03,136.95,0.75815591]
[1767582500319,94.3262631,137.03,136.95,0.75815591]
[1767582500719,94.3262631,137.03,136.98,0.05524725]
[1767582501626,92.851,137.03,136.98,0.05524725]
[1767582501814,87.7552631,137.03,136.98,0.05524725]
[1767582502219,86.28,137.03,136.98,0.05524725]
[1767582505629,7.0849131,137.06,136.98,0.05524725]
[1767582505832,86.28,137.05,136.98,0.81340316]
[1767582506330,86.28,137.05,136.98,7.38620316]
[1767582507030,5.60965,137.06,136.99,7.33055591]
[1767582507226,5.60965,137.06,137.0,0.75815591]
[1767582507828,5.60965,137.06,137.02,0.05485878]
[1767582509534,5.60965,137.06,137.02,0.81301469]
[1767582510728,5.60965,137.06,137.02,0.05485878]
[1767582517450,5.60965,137.06,137.02,0.79991641]
[1767582517647,102.1114,137.17,137.04,0.74505763]
[1767582517839,102.098,137.19,137.08,0.74505763]
[1767582518037,102.0808,137.21,137.09,2.22032073]
[1767582518038,86.24,137.18,137.09,2.22032073]
[1767582518243,86.24,137.18,137.11,2.22032073]
[1767582518442,86.24,137.18,137.12,0.05043956]
[1767582518853,86.24,137.21,137.12,0.05043956]
[1767582519053,92.8023,137.21,137.12,0.05043956]
[1767582519351,92.8023,137.21,137.11,0.74505763]
[1767582519553,6.5631,137.2,137.11,0.74505763]
[1767582519751,86.24,137.21,137.15,0.05503947]
[1767582520253,92.8025,137.21,137.15,0.05503947]
[1767582520749,189.7808,137.21,137.1,0.74505763]
[1767582520952,188.3208,137.21,137.1,0.74505763]
[1767582521356,102.0958,137.19,137.07,7.31375763]
[1767582521654,86.22,137.21,137.1,0.74505763]
[1767582522148,86.22,137.21,137.12,0.74505763]
[1767582523149,86.22,137.21,137.13,0.74505763]
[1767582523548,0.04869649,137.18,137.13,0.74505763]
[1767582525057,0.04869649,137.18,137.11,0.74505763]
[1767582525757,86.22,137.21,137.13,0.74505763]
[1767582526151,86.22,137.21,137.13,0.80039567]
[1767582528560,92.7825,137.21,137.13,0.80039567]
[1767582529160,92.7825,137.21,137.13,0.05533804]
[1767582529458,92.7825,137.21,137.06,0.74505763]
[1767582529459,102.1096,137.17,137.06,0.74505763]
[1767582529656,86.18,137.16,137.06,0.74505763]
[1767582530555,0.05578137,137.12,137.05,6.5696]
[1767582531258,0.05578137,137.12,137.05,7.31465763]
[1767582531453,0.05578137,137.12,137.05,7.31485763]
[1767582535569,0.05578137,137.12,137.05,0.74505763]
[1767582535763,0.05578137,137.12,137.03,6.5706]
[1767582536067,6.5672,137.11,137.02,86.92505763]
[1767582536665,0.05625094,137.08,137.02,86.92505763]
[1767582537570,0.05625094,137.08,136.99,6.5725]
[1767582537869,0.05625094,137.08,137.0,0.74505763]
[1767582538067,6.5677,137.1,137.0,0.74505763]
[1767582538465,0.05295993,137.05,137.0,0.74505763]
[1767582539967,0.05295993,137.05,136.96,0.74505763]
[1767582540175,102.2065,137.04,136.92,0.74505763]
[1767582540667,6.5715,137.02,136.92,0.74505763]
[1767582540867,0.05479059,136.99,136.92,0.74505763]
[1767582541069,6.5715,137.02,136.91,6.5763]
[1767582541070,86.18,137.03,136.94,0.73975233]
[1767582541266,86.18,137.03,136.96,0.0505097]
[1767582542174,92.7511,137.03,136.96,0.0505097]
[1767582542868,92.7711,137.03,136.96,0.0505097]
[1767582543075,188.4135,137.03,136.96,0.0505097]
[1767582544571,6.5721,137.01,136.96,0.0505097]
[1767582544768,6.5721,137.01,136.91,0.73975233]
[1767582546075,0.04670707,136.97,136.91,0.73975233]
[1767582548074,92.771,137.03,136.92,0.73975233]
[1767582548277,92.771,137.03,136.93,0.78635792]
[1767582548578,92.771,137.03,136.93,0.73975233]
[1767582548777,102.1878,137.07,136.94,0.73975233]
[1767582548970,86.22,137.08,136.97,0.73975233]
[1767582549166,86.22,137.08,136.99,0.04747213]
[1767582549569,86.22,137.08,136.97,0.73975233]
[1767582549971,86.22,137.08,137.02,0.05060562]
[1767582550677,6.569,137.07,137.02,0.05060562]
[1767582552179,6.61931035,137.06,136.97,0.73975233]
[1767582552568,6.5702,137.05,136.94,0.73975233]
[1767582553481,0.05118178,137.01,136.94,0.73975233]
[1767582555087,0.05118178,137.01,136.91,0.73975233]
[1767582555271,0.05118178,137.01,136.92,0.73975233]
[1767582555272,86.29118178,137.01,136.92,0.73975233]
[1767582555581,86.24,137.01,136.92,0.73975233]
[1767582555977,0.05139713,136.98,136.92,0.73975233]
[1767582556176,6.571,137.03,136.93,0.73975233]
[1767582556376,86.24,137.02,136.93,0.73975233]
[1767582556580,86.24,137.02,136.92,6.5757]
[1767582556581,86.24,137.02,136.94,0.78798703]
[1767582558278,86.24,137.02,136.95,0.73975233]
[1767582558476,92.81,137.05,136.95,0.73975233]
[1767582559078,92.81,137.05,136.99,0.05272423]
[1767582562179,6.5706,137.04,136.99,0.05272423]
[1767582567890,102.26515385,137.03,136.92,0.73975233]
[1767582568094,102.2213,137.02,136.92,0.73975233]
[1767582568283,102.2213,137.02,136.87,188.5694]
[1767582568284,188.4716,137.01,136.88,0.73975233]
[1767582568478,188.4716,137.01,136.89,0.73975233]
[1767582569092,6.5737,136.98,136.89,0.73975233]
[1767582569388,0.05109332,136.96,136.89,0.73975233]
[1767582569797,0.05109332,136.96,136.89,7.31705233]
[1767582569987,0.05109332,136.96,136.9,0.73975233]
[1767582570492,102.1938,137.06,136.91,103.05970492]
[1767582570692,86.24,137.03,136.93,0.75990492]
[1767582570992,86.24,137.03,136.95,7.33430492]
[1767582571787,86.24,137.03,136.98,0.04857669]
[1767582573693,6.5697,137.06,136.98,0.80848161]
[1767582573900,86.26,137.05,136.98,0.80848161]
[1767582574103,86.26,137.05,136.98,0.75990492]
[1767582574493,86.26,137.05,137.0,0.05120405]
[1767582575804,92.83,137.05,137.0,0.05120405]
[1767582576398,92.83,137.05,136.96,6.574]
[1767582576803,0.04850162,137.04,136.96,7.326575]
[1767582577205,6.61910162,137.04,136.96,0.752575]
[1767582577509,0.04850162,137.04,136.94,6.5748]
[1767582577805,0.04850162,137.04,136.94,7.327375]
[1767582578001,86.26,137.05,136.94,7.327375]
[1767582578508,0.0467717,137.0,136.94,7.327375]
[1767582579310,0.0467717,137.0,136.94,0.752575]
[1767582588010,6.6193717,137.0,136.91,0.752575]
[1767582588214,102.2457,136.99,136.91,0.752575]
[1767582588404,102.2457,136.99,136.88,0.752575]
[1767582588607,105.86964728,136.99,136.88,0.752575]
[1767582588912,0.05462973,136.95,136.88,0.752575]
[1767582589605,0.05462973,136.95,136.88,7.330275]
[1767582592812,0.05462973,136.95,136.89,0.752575]
[1767582600422,0.05462973,136.95,136.9,0.82013853]
[1767582601523,1.47570343,136.98,136.91,0.82013853]
[1767582601725,1.47570343,137.0,136.91,0.82013853]
[1767582602328,8.04810343,137.0,136.92,0.82013853]
[1767582602718,8.04810343,137.0,136.95,0.05460273]
[1767582602919,1.47570343,136.98,136.92,0.82013853]
[1767582603118,0.0544933,136.97,136.92,0.82013853]
[1767582603324,408.7198,137.08,136.92,0.82013853]
[1767582603626,1.47570343,137.0,136.92,0.82013853]
[1767582604021,8.04810343,137.0,136.93,0.82013853]
[1767582604830,8.04730343,137.02,136.95,0.86799414]
[1767582606024,6.5719,137.01,136.95,0.86799414]
[1767582606224,1.47570343,136.98,136.88,0.82013853]
[1767582606428,1.47570343,136.96,136.88,0.82013853]
[1767582606625,1.47570343,136.96,136.89,0.82013853]
[1767582606829,86.28,136.98,136.89,0.82013853]
[1767582606830,1.47570343,136.94,136.89,0.82013853]
[1767582608031,0.04913359,136.93,136.89,0.82013853]
[1767582609123,86.28,136.97,136.91,0.82013853]
[1767582609933,92.8539,136.97,136.9,0.05601489]
[1767582612028,6.5744,136.96,136.9,0.05601489]
[1767582613329,6.5748,136.95,136.9,0.05601489]
[1767582613517,188.5443,136.97,136.9,0.05601489]
[1767582614530,6.5754,136.94,136.9,0.05601489]
[1767582617437,6.5744,136.96,136.9,0.05601489]
[1767582621033,6.5748,136.95,136.9,0.05601489]
[1767582626838,6.5753,136.94,136.9,0.05601489]
[1767582627039,86.3,136.93,136.9,0.05601489]
[1767582627630,92.876,136.93,136.85,0.82013853]
[1767582628035,92.93139394,136.93,136.85,0.82013853]
[1767582628236,86.35539394,136.93,136.86,0.82013853]
[1767582628636,86.3,136.93,136.86,0.82013853]
[1767582629342,86.3,136.93,136.88,0.8713548]
[1767582630944,87.7760849,136.95,136.88,0.8713548]
[1767582631146,86.3,136.95,136.9,0.82486827]
[1767582631742,87.7760849,136.95,136.88,0.82486827]
[1767582631941,87.7760849,136.95,136.91,0.05055002]
[1767582632440,87.7760849,136.95,136.88,0.82486827]
[1767582632441,1.4760849,136.93,136.88,0.82486827]
[1767582632639,1.4760849,136.93,136.86,0.82486827]
[1767582633048,1.4760849,136.91,136.86,0.82486827]
[1767582633636,94.3527849,136.91,136.84,0.82486827]
[1767582633842,0.05162191,136.9,136.84,0.82486827]
[1767582634239,1.4760849,136.89,136.82,0.82486827]
[1767582634647,1.4760849,136.87,136.82,0.82486827]